fUST/lending_fUST_20260429
["ID","MTS","AMOUNT","RATE_DAILY","PERIOD"]
[421316017,1777416632844,-300.0,0.00017299,2]
[421316018,1777416632853,-300.0,0.00017299,2]
[421316019,1777416632863,-300.0,0.00017299,2]
[421316020,1777416632874,-300.0,0.00017299,2]
[421316021,1777416632884,-300.0,0.00017299,2]
[421316022,1777416632896,-300.0,0.00017299,2]
[421316023,1777416632905,-300.0,0.00017299,2]
[421316024,1777416632915,-300.0,0.00017299,2]
[421316025,1777416632925,-300.0,0.00017299,2]
[421316026,1777416632935,-300.0,0.00017299,2]
[421316027,1777416632944,-90.3454725,0.00017299,2]
[421316028,1777416633009,-209.6545275,0.00017299,2]
[421316029,1777416633019,-300.0,0.00017299,2]
[421316030,1777416633028,-343.9694725,0.00017644,2]
[421316039,1777416638575,-256.0305275,0.00017644,2]
[421316040,1777416638585,-35.32622142,0.00018801,2]
[421316041,1777416638598,-343.17685531,0.00018801,2]
[421316042,1777416638608,-272.0,0.00019,2]
[421316043,1777416638618,-213.953727,0.00019116,2]
[421316044,1777416638630,-160.0,0.00019155,2]
[421316045,1777416638640,-5177.48639994,0.00019206,2]
[421316046,1777416638666,-3553.01995316,0.00019206,2]
[421316047,1777416638676,-720.0,0.00019408,2]
[421316048,1777416638686,-158.0270259,0.00019421,2]
[421316049,1777416638696,-2083.2,0.000195,2]
[421316050,1777416638707,-500.0,0.00019599,2]
[421316051,1777416638718,-250.82315456,0.00019599,2]
[421316052,1777416638729,-234.88381441,0.00019599,2]
[421316053,1777416638739,-500.0,0.00019599,2]
[421316054,1777416638749,-400.0,0.00019599,2]
[421316055,1777416638759,-350.0,0.00019599,2]
[421316056,1777416638769,-583.86061185,0.00019599,2]
[421316057,1777416638779,-836947.18120652,0.000196,2]
[421316222,1777416643845,-4642.358051,0.000196,2]
[421316225,1777416643868,-1241.93381312,0.000196,2]
[421316229,1777416643902,-6807.10848656,0.000196,2]
[421316255,1777416647111,-11501.82230475,0.000196,2]
[421316258,1777417300272,-2631.97525188,0.00013259,2]
[421316261,1777417749154,-213.56495138,0.00012995,2]
[421316262,1777417755133,-12.98530997,0.00012995,2]
[421316263,1777417755156,-232.82238721,0.00013194,2]
[421316264,1777417755178,-156.0,0.00013699,2]
[421316265,1777417755200,-1000.0,0.00013699,2]
[421316266,1777417755222,-90.58243742,0.00015194,2]
[421316299,1777417832268,-184.14797949,0.00015194,2]
[421316301,1777417832279,-174.0,0.00016575,3]
[421316303,1777417832289,-316.63844661,0.00017194,2]
[421316305,1777417832299,-151.0,0.00018315,2]
[421316307,1777417832316,-1261.43833,0.0001881,2]
[421316309,1777417832326,-160.0,0.0001881,2]
[421316311,1777417832336,-86.87946779,0.0001881,2]
[421316313,1777417832349,-73.12053221,0.0001881,2]
[421316315,1777417832358,-442.0,0.00018933,2]
[421316316,1777417832368,-185.0,0.00018933,2]
[421316318,1777417832378,-234.95,0.00019071,2]
[421316320,1777417832388,-49.29060109,0.00019194,2]
[421316322,1777417832399,-309.25587521,0.00019194,2]
[421316325,1777417832409,-500.0,0.00019299,2]
[421316328,1777417832420,-500.0,0.00019299,2]
[421316331,1777417832429,-479.39884132,0.00019299,2]
[421316334,1777417832440,-500.0,0.00019299,2]
[421316336,1777417832450,-375.82430281,0.00019299,2]
[421316339,1777417832461,-255.91186921,0.00019299,2]
[421316342,1777417832471,-5444.58445904,0.000193,2]
[421316426,1777417838494,-2039.57789663,0.000193,2]
[421316427,1777417838601,-1136.54756164,0.000193,2]
[421316428,1777417838613,-7076.90089951,0.000193,2]
[421316429,1777417838625,-398807.91642256,0.000193,2]
[421316430,1777417838654,-423.61164771,0.000193,2]
[421316431,1777417838668,-58773.36715316,0.000193,2]
[421316463,1777417840768,-7873.4,0.000193,2]
[421316469,1777417840821,-520.09031662,0.000193,2]
[421316524,1777417843449,-403.29280148,0.000193,2]
[421316525,1777417843660,-1272.31968688,0.000193,2]
[421316531,1777417846863,-27582.33033567,0.000193,2]
[421316541,1777418948135,-318.18180548,0.00013027,2]
[421316542,1777418950143,-801.78798,0.00013027,2]
[421316543,1777418953140,-3843.87525348,0.00013027,2]
[421316573,1777419032696,-36.15496104,0.00013027,2]
[421316574,1777419032707,-222.50309779,0.00013261,2]
[421316575,1777419032717,-1000.0,0.00013699,2]
[421316576,1777419032726,-262.55365539,0.00015261,2]
[421316577,1777419032735,-302.60421299,0.00017261,2]
[421316578,1777419032745,-235.66233444,0.00017298,2]
[421316579,1777419032754,-250.0,0.0001759,2]
[421316580,1777419032764,-621.48467104,0.00018702,2]
[421316581,1777419032774,-300.0,0.00018798,2]
[421316582,1777419032784,-552.0,0.00018798,2]
[421316583,1777419032793,-613.07701197,0.00018799,2]
[421316584,1777419032803,-235.37327116,0.00018799,2]
[421316585,1777419032813,-217.92341978,0.00018799,2]
[421316586,1777419032822,-500.0,0.00018799,2]
[421316587,1777419032832,-271.12880086,0.00018799,2]
[421316588,1777419032841,-500.0,0.00018799,2]
[421316589,1777419032851,-599.92124775,0.00018799,2]
[421316590,1777419032860,-3339.79331579,0.000188,2]
[421316591,1777419032876,-13116.556618,0.000188,2]
[421316744,1777419038797,-36241.92704218,0.000188,2]
[421316804,1777419043869,-741.48,0.000188,2]
[421316806,1777419047039,-1260.13155678,0.000188,2]
[421316812,1777419047365,-102410.6888058,0.000188,2]
[421316815,1777419054417,986.76,4.11e-05,2]
[421316820,1777420153141,-2418.45940153,0.00013359,2]
[421316821,1777420163103,-285.52961394,0.00013359,2]
[421316849,1777420231661,-334.45923056,0.00013225,2]
[421316855,1777420231713,-355.71045177,0.00013225,2]
[421316857,1777420231727,-768.64455938,0.00013225,2]
[421316859,1777420231737,-608.0,0.00013225,2]
[421316861,1777420231748,-228.83043673,0.00013562,2]
[421316863,1777420231758,-1000.0,0.00013699,2]
[421316865,1777420231767,-270.01991535,0.00015562,2]
[421316867,1777420231777,-291.92,0.00016534,2]
[421316869,1777420231786,-157.0,0.0001663,3]
[421316872,1777420231795,-311.20939396,0.00017562,2]
[421316874,1777420231805,-212.434621,0.00018308,2]
[421316876,1777420231815,-151.0,0.00018308,2]
[421316878,1777420231824,-151.0,0.00018308,2]
[421316880,1777420231833,-631.82742796,0.000185,2]
[421316881,1777420231842,-300.0,0.00018598,2]
[421316883,1777420231851,-53.1528886,0.00018599,2]
[421317016,1777420238534,-446.8471114,0.00018599,2]
[421317017,1777420238544,-500.0,0.00018599,2]
[421317018,1777420238556,-500.0,0.00018599,2]
[421317019,1777420238567,-500.0,0.00018599,2]
[421317020,1777420238577,-533.08107783,0.00018599,2]
[421317021,1777420238587,-500.0,0.00018599,2]
[421317022,1777420238597,-500.0,0.00018599,2]
[421317023,1777420238607,-500.0,0.00018599,2]
[421317024,1777420238620,-500.0,0.00018599,2]
[421317025,1777420238630,-500.0,0.00018599,2]
[421317026,1777420238641,-500.0,0.00018599,2]
[421317027,1777420238651,-500.0,0.00018599,2]
[421317028,1777420238662,-500.0,0.00018599,2]
[421317029,1777420238672,-500.0,0.00018599,2]
[421317030,1777420238682,-500.0,0.00018599,2]
[421317031,1777420238692,-557.50791274,0.00018599,2]
[421317032,1777420238702,-229.0052332,0.00018599,2]
[421317033,1777420238711,-429.15390838,0.00018599,2]
[421317034,1777420238721,-415.87980527,0.00018599,2]
[421317035,1777420238730,-6292.81131461,0.000186,2]
[421317036,1777420238744,-63120.23845175,0.000186,2]
[421317037,1777420238818,-1856.86616958,0.000186,2]
[421317038,1777420238829,-811.51114452,0.000186,2]
[421317045,1777420242843,-3043.89712044,0.000186,2]
[421317046,1777420242855,-895.66316871,0.000186,2]
[421317047,1777420242947,-13998.86834645,0.000186,2]
[421317048,1777420242960,-764.9986205,0.000186,2]
[421317049,1777420243006,-1372.56330807,0.000186,2]
[421317050,1777420243018,-27518.18721161,0.000186,2]
[421317057,1777420246156,-1338.83582437,0.00018414,2]
[421317058,1777420246166,-26185.67332324,0.000186,2]
[421317059,1777420246203,-8616.65914692,0.000186,2]
[421317060,1777420246496,-16231.62145355,0.000186,2]
[421317071,1777420848980,2532.40363898,7.6e-05,2]
[421317073,1777421138376,-299.5716129,7.6e-05,2]
[421317074,1777421138398,-527.0,7.6e-05,2]
[421317075,1777421138420,-225.38078657,9.963e-05,2]
[421317076,1777421138444,-300.0,0.00011606,7]
[421317077,1777421138466,-27.83785703,0.00011963,2]
[421317078,1777421198368,-178.0,0.00011963,2]
[421317079,1777421198394,-238.11147113,0.00011963,2]
[421317080,1777421198416,-159.72236419,0.00013699,2]
[421317081,1777421355126,-213.56495138,0.00011843,2]
[421317082,1777421355149,-80.43504862,0.00011963,2]
[421317083,1777421369133,-139.88136508,0.00011963,2]
[421317084,1777421369155,-14.09955477,0.00013699,2]
[421317099,1777421431940,-826.17808104,0.00013699,2]
[421317100,1777421431950,-5799.99497043,0.00013853,2]
[421317101,1777421432044,-263.53502957,0.00013853,2]
[421317102,1777421432053,-259.97336817,0.00013963,2]
[421317103,1777421432063,-299.63032264,0.00015963,2]
[421317104,1777421432073,-300.0,0.0001628,2]
[421317105,1777421432083,-300.0,0.00016281,2]
[421317106,1777421432095,-300.0,0.00016281,2]
[421317107,1777421432104,-300.0,0.00016281,2]
[421317108,1777421432115,-300.0,0.00016281,2]
[421317109,1777421432124,-300.0,0.00016281,2]
[421317110,1777421432134,-300.0,0.00016281,2]
[421317111,1777421432144,-300.0,0.00016281,2]
[421317112,1777421432153,-300.0,0.00016281,2]
[421317113,1777421432163,-300.0,0.00016281,2]
[421317114,1777421432174,-300.0,0.00016281,2]
[421317115,1777421432183,-300.0,0.00016281,2]
[421317116,1777421432192,-300.0,0.00016281,2]
[421317117,1777421432202,-300.0,0.00016281,2]
[421317118,1777421432211,-300.0,0.00016281,2]
[421317119,1777421432220,-273.90545774,0.00016281,2]
[421317146,1777421438052,-26.09454226,0.00016281,2]
[421317147,1777421438062,-174.0,0.0001663,3]
[421317148,1777421438072,-1727.90757443,0.000179,2]
[421317149,1777421438084,-1902.53269466,0.000179,2]
[421317150,1777421438107,-263.8249803,0.000179,2]
[421317151,1777421438119,-55.73475061,0.000179,2]
[421317152,1777421438130,-339.2872771,0.00017963,2]
[421317153,1777421438139,-152.0,0.0001814,7]
[421317154,1777421438150,-152.0,0.00018173,7]
[421317155,1777421438160,-152.0,0.00018204,7]
[421317156,1777421438170,-152.0,0.00018204,7]
[421317157,1777421438180,-152.0,0.00018222,7]
[421317158,1777421438190,-152.0,0.00018222,7]
[421317159,1777421438200,-152.0,0.00018222,7]
[421317160,1777421438209,-185.0,0.00018277,2]
[421317161,1777421438219,-151.4253807,0.00018304,2]
[421317162,1777421438228,-152.0,0.00018309,7]
[421317163,1777421438239,-152.0,0.00018341,7]
[421317164,1777421438249,-152.0,0.00018341,7]
[421317165,1777421438259,-152.0,0.00018371,7]
[421317166,1777421438270,-152.0,0.00018371,7]
[421317167,1777421438279,-152.0,0.00018371,7]
[421317168,1777421438289,-152.0,0.00018371,7]
[421317169,1777421438299,-2382.7055974,0.00018487,2]
[421317170,1777421438310,-3046.8813422,0.00018487,2]
[421317171,1777421438319,-3219.8158615,0.00018487,2]
[421317172,1777421438329,-160.0,0.00018499,2]
[421317173,1777421438339,-160.0,0.00018499,2]
[421317174,1777421438349,-552.84899943,0.000185,2]
[421317175,1777421438359,-152.0,0.00018592,7]
[421317176,1777421438369,-152.0,0.00018592,7]
[421317177,1777421438379,-152.0,0.00018592,7]
[421317178,1777421438388,-152.0,0.00018597,7]
[421317179,1777421438399,-152.0,0.00018597,7]
[421317180,1777421438410,-152.0,0.00018597,7]
[421317181,1777421438420,-152.0,0.00018597,7]
[421317182,1777421438432,-152.0,0.00018597,7]
[421317183,1777421438443,-152.0,0.00018597,7]
[421317184,1777421438452,-152.0,0.00018597,7]
[421317185,1777421438462,-500.0,0.000186,2]
[421317186,1777421438472,-152.0,0.00018603,7]
[421317187,1777421438483,-152.0,0.00018603,7]
[421317188,1777421438493,-152.0,0.00018603,7]
[421317189,1777421438504,-152.0,0.00018623,7]
[421317190,1777421438514,-152.0,0.00018623,7]
[421317191,1777421438524,-152.0,0.00018623,7]
[421317192,1777421438534,-152.0,0.00018623,7]
[421317193,1777421438543,-152.0,0.00018651,7]
[421317194,1777421438552,-152.0,0.00018651,7]
[421317195,1777421438563,-152.0,0.00018703,7]
[421317196,1777421438573,-152.0,0.00018703,7]
[421317197,1777421438584,-152.0,0.00018703,7]
[421317198,1777421438594,-152.0,0.0001875,7]
[421317199,1777421438604,-152.0,0.0001875,7]
[421317200,1777421438613,-152.0,0.0001875,7]
[421317201,1777421438624,-152.0,0.0001875,7]
[421317202,1777421438634,-152.0,0.00018759,7]
[421317203,1777421438644,-152.0,0.00018759,7]
[421317204,1777421438653,-152.0,0.00018759,7]
[421317205,1777421438663,-152.0,0.00018759,7]
[421317206,1777421438673,-152.0,0.00018759,7]
[421317207,1777421438683,-152.0,0.00018759,7]
[421317208,1777421438693,-152.0,0.00018759,7]
[421317209,1777421438703,-500.0,0.00018771,2]
[421317210,1777421438713,-500.0,0.00018771,2]
[421317211,1777421438723,-152.0,0.00018778,7]
[421317212,1777421438733,-152.0,0.00018778,7]
[421317213,1777421438744,-152.0,0.00018778,7]
[421317214,1777421438757,-152.0,0.00018778,7]
[421317215,1777421438767,-152.0,0.00018778,7]
[421317216,1777421438776,-152.0,0.00018778,7]
[421317217,1777421438786,-152.0,0.00018778,7]
[421317218,1777421438797,-152.0,0.00018778,7]
[421317219,1777421438808,-152.0,0.00018778,7]
[421317220,1777421438819,-335.96096963,0.00018799,2]
[421317221,1777421438829,-152.0,0.00018823,7]
[421317222,1777421438841,-152.0,0.00018834,7]
[421317223,1777421438851,-152.0,0.00018834,7]
[421317224,1777421438860,-152.0,0.00018853,7]
[421317225,1777421438870,-200.0,0.00018853,120]
[421317226,1777421438880,-600.0,0.00018856,2]
[421317227,1777421438889,-152.0,0.00018872,7]
[421317228,1777421438899,-152.0,0.00018872,7]
[421317229,1777421438909,-2779.85657377,0.00018889,2]
[421317230,1777421438918,-3950.0,0.000189,2]
[421317231,1777421438928,-152.0,0.00018904,7]
[421317232,1777421438937,-552.84899943,0.00018971,2]
[421317233,1777421438947,-200.0,0.0001909,120]
[421317234,1777421438956,-151.0,0.00019126,2]
[421317235,1777421438965,-151.0,0.00019126,2]
[421317236,1777421438975,-455.9805711,0.00019126,2]
[421317237,1777421438985,-325.5033173,0.00019126,2]
[421317238,1777421438995,-325.5277396,0.00019126,2]
[421317239,1777421439005,-151.0,0.00019135,2]
[421317240,1777421439015,-455.9805711,0.00019135,2]
[421317241,1777421439025,-151.0,0.00019135,2]
[421317242,1777421439034,-455.4037989,0.00019135,2]
[421317243,1777421439044,-455.9805711,0.00019135,2]
[421317244,1777421439053,-1000.0,0.00019178,2]
[421317245,1777421439063,-1000.0,0.00019178,2]
[421317246,1777421439073,-1000.0,0.00019178,2]
[421317247,1777421439083,-152.0,0.00019236,7]
[421317248,1777421439093,-152.0,0.00019242,7]
[421317249,1777421439103,-152.0,0.00019261,7]
[421317250,1777421439112,-152.0,0.00019261,7]
[421317251,1777421439122,-340.753,0.00019273,2]
[421317252,1777421439132,-152.0,0.00019294,7]
[421317253,1777421439142,-152.0,0.00019314,7]
[421317254,1777421439151,-152.0,0.00019314,7]
[421317255,1777421439161,-152.0,0.00019314,7]
[421317256,1777421439171,-152.0,0.00019314,7]
[421317257,1777421439180,-151.5,0.00019341,2]
[421317258,1777421439190,-151.5,0.00019341,2]
[421317259,1777421439200,-151.5,0.00019341,2]
[421317260,1777421439209,-151.5,0.00019341,2]
[421317261,1777421439218,-151.5,0.00019341,2]
[421317262,1777421439228,-242.5,0.00019341,2]
[421317263,1777421439239,-552.84899943,0.00019443,2]
[421317264,1777421439251,-396.89,0.00019598,2]
[421317265,1777421439261,-500.0,0.00019599,2]
[421317266,1777421439271,-1121.64,0.000196,5]
[421317267,1777421439280,-249.883788,0.000197,2]
[421317268,1777421439289,-249.883788,0.000197,2]
[421317269,1777421439299,-249.883788,0.000197,2]
[421317270,1777421439308,-249.883788,0.000197,2]
[421317271,1777421439317,-357.328141,0.000197,2]
[421317272,1777421439327,-357.328141,0.000197,2]
[421317273,1777421439336,-357.328141,0.000197,2]
[421317274,1777421439346,-357.328141,0.000197,2]
[421317275,1777421439356,-300.0,0.000197,2]
[421317276,1777421439365,-151.0,0.000197,2]
[421317277,1777421439374,-155.0,0.00019799,2]
[421317278,1777421439384,-692.88814772,0.000198,2]
[421317279,1777421439397,-424.1750197,0.000198,2]
[421317282,1777421439892,-27289.55771569,0.000198,2]
[421317283,1777421439904,-2923.86707462,0.000198,2]
[421317284,1777421439915,-33696.72674159,0.000198,2]
[421317287,1777421440694,-3220.11241497,0.000198,2]
[421317291,1777421443056,-1000.0,0.000195,2]
[421317292,1777421443066,-9412.76468092,0.000198,2]
[421317293,1777421443079,-4574.14783359,0.000198,2]
[421317306,1777421446678,-152.0,0.00017288,7]
[421317307,1777421446689,-152.0,0.00017288,7]
[421317308,1777421446700,-152.0,0.00017904,7]
[421317309,1777421446710,-13831.51408875,0.000198,2]
[421317310,1777421446721,-2260.53377955,0.000198,2]
[421317311,1777421446732,-207.2819363,0.000198,2]
[421317312,1777421446742,-249.883788,0.000198,2]
[421317313,1777421446751,-249.883788,0.000198,2]
[421317314,1777421446761,-194.98302884,0.000198,2]
[421317315,1777422333132,-330.18748189,0.00013699,2]
[421317316,1777422428146,-233.25569572,0.00013699,2]
[421317334,1777422632250,-1000.0,0.00013699,2]
[421317335,1777422632261,-980.1863641,0.00013718,2]
[421317336,1777422632305,-139.78342138,0.00013718,2]
[421317337,1777422632315,-143.84057862,0.00013857,2]
[421317338,1777422632328,-66.46405273,0.00013857,2]
[421317339,1777422632338,-300.0,0.00013922,2]
[421317340,1777422632348,-1239.45816541,0.00013923,2]
[421317341,1777422632361,-441.36114199,0.00013923,2]
[421317348,1777422638316,-431.87462275,0.00013923,2]
[421317350,1777422638329,-645.68277805,0.00013923,2]
[421317351,1777422638487,-7241.6232918,0.00013923,2]
[421317352,1777422638497,-3677.23,0.00014023,2]
[421317353,1777422638506,-300.0,0.000142,2]
[421317354,1777422638516,-300.0,0.000142,2]
[421317355,1777422638527,-300.0,0.000142,2]
[421317356,1777422638536,-300.0,0.000142,2]
[421317358,1777422638546,-300.0,0.000142,2]
[421317359,1777422638555,-300.0,0.000142,2]
[421317360,1777422638564,-300.0,0.000142,2]
[421317361,1777422638573,-300.0,0.000142,2]
[421317362,1777422638583,-300.0,0.000142,2]
[421317363,1777422638592,-300.0,0.000142,2]
[421317364,1777422638601,-300.0,0.000142,2]
[421317365,1777422638611,-300.0,0.000142,2]
[421317366,1777422638621,-300.0,0.000142,2]
[421317367,1777422638639,-300.0,0.000142,2]
[421317368,1777422638658,-300.0,0.000142,2]
[421317369,1777422638670,-166.66666668,0.0001433,2]
[421317370,1777422638681,-600.0,0.00014483,2]
[421317371,1777422638692,-166.66666666,0.0001543,2]
[421317372,1777422638703,-160.0,0.00015665,2]
[421317373,1777422638714,-248.15946499,0.00015857,2]
[421317374,1777422638724,-720.0,0.00015931,2]
[421317375,1777422638735,-166.66666666,0.0001653,2]
[421317376,1777422638745,-156.0,0.0001663,3]
[421317377,1777422638755,-864.0,0.00017524,2]
[421317378,1777422638766,-286.01429864,0.00017857,2]
[421317379,1777422638776,-537.6845,0.00018663,2]
[421317380,1777422638787,-151.0,0.00018663,2]
[421317381,1777422638797,-151.0,0.00018663,2]
[421317382,1777422638807,-151.0,0.00018663,2]
[421317383,1777422638817,-151.0,0.00018663,2]
[421317384,1777422638828,-151.0,0.00018663,2]
[421317385,1777422638838,-151.0,0.00018663,2]
[421317386,1777422638848,-151.0,0.00018663,2]
[421317387,1777422638858,-151.0,0.00018663,2]
[421317388,1777422638868,-151.0,0.00018663,2]
[421317389,1777422638879,-151.0,0.00018663,2]
[421317390,1777422638889,-151.0,0.00018663,2]
[421317391,1777422638899,-151.0,0.00018663,2]
[421317392,1777422638909,-151.0,0.00018663,2]
[421317393,1777422638919,-151.0,0.00018663,2]
[421317394,1777422638929,-151.0,0.00018663,2]
[421317395,1777422638939,-151.0,0.00018663,2]
[421317396,1777422638949,-151.0,0.00018663,2]
[421317397,1777422638960,-2150.738,0.00018663,2]
[421317398,1777422638970,-151.0,0.00018663,2]
[421317399,1777422638981,-151.0,0.00018663,2]
[421317400,1777422638993,-151.84430154,0.00018663,2]
[421317401,1777422639003,-455.9805711,0.00019157,2]
[421317402,1777422639014,-325.5277396,0.00019157,2]
[421317403,1777422639025,-325.5277396,0.00019157,2]
[421317404,1777422639037,-150.0,0.00019178,2]
[421317405,1777422639047,-149.38733785,0.0001926,60]
[421317434,1777422643448,-95.27606348,0.0001926,60]
[421317435,1777422643458,-272.603,0.00019273,2]
[421317436,1777422643469,-1000.0,0.00019277,2]
[421317437,1777422643478,-345.53062467,0.00019398,2]
[421317438,1777422643488,-200.0,0.00019404,120]
[421317439,1777422643498,-155.37116779,0.00019488,2]
[421317440,1777422643507,-185.0,0.00019497,2]
[421317441,1777422643517,-231.35823425,0.00019498,2]
[421317442,1777422643527,-300.40773586,0.00019498,2]
[421317443,1777422643536,-500.0,0.00019498,2]
[421317444,1777422643546,-500.0,0.00019498,2]
[421317445,1777422643556,-441.28616202,0.00019498,2]
[421317446,1777422643569,-38.59528986,0.00019498,2]
[421317447,1777422643581,-500.0,0.00019498,2]
[421317448,1777422643592,-568.36280534,0.00019498,2]
[421317449,1777422643602,-161.95076397,0.00019498,2]
[421317450,1777422643611,-291.11586369,0.00019498,2]
[421317451,1777422643621,-2821.19829259,0.00019499,2]
[421317459,1777422647095,-59240.48357936,0.00019499,2]
[421317460,1777422738223,-157.0,0.00016658,3]
[421317461,1777422738252,-200.73,0.00017989,2]
[421317463,1777423641136,-297.60933489,0.00013027,2]
[421317464,1777423650114,-736.3359,0.00013027,2]
[421317465,1777423768094,-3719.8820591,0.00013027,2]
[421317491,1777423832214,-1193.30073341,0.00013095,2]
[421317493,1777423832226,-295.30926659,0.00013095,2]
[421317498,1777423832266,-1613.93200501,0.00013095,2]
[421317500,1777423832275,-210.65506345,0.00013227,2]
[421317501,1777423832285,-1000.0,0.00013699,2]
[421317503,1777423832294,-248.57297487,0.00015227,2]
[421317505,1777423832304,-291.12,0.00016371,2]
[421317507,1777423832314,-292.68,0.00016412,2]
[421317509,1777423832324,-387.16,0.00016496,2]
[421317511,1777423832333,-393.73,0.0001661,2]
[421317513,1777423832342,-157.0,0.00016658,3]
[421317515,1777423832352,-214.81042343,0.00017227,2]
[421317576,1777423838556,-71.68046286,0.00017227,2]
[421317577,1777423838567,-200.73,0.00017712,2]
[421317578,1777423838577,-160.0,0.000179,2]
[421317579,1777423838587,-16.73566477,0.00017954,2]
[421317580,1777423838658,-385.02433523,0.00017954,2]
[421317581,1777423838669,-258.97,0.00018277,2]
[421317582,1777423838679,-248.59,0.00018278,2]
[421317583,1777423838689,-160.0,0.000188,2]
[421317584,1777423838699,-160.0,0.000188,3]
[421317585,1777423838710,-160.0,0.000188,4]
[421317586,1777423838719,-160.0,0.000188,5]
[421317587,1777423838729,-158.0,0.000188,6]
[421317588,1777423838740,-152.0,0.00018955,7]
[421317589,1777423838751,-152.0,0.00018974,7]
[421317590,1777423838761,-300.0,0.00018999,2]
[421317592,1777423838771,-1200.0,0.00018999,2]
[421317593,1777423838783,-427.0,0.00019,2]
[421317594,1777423838792,-828.0,0.00019,2]
[421317595,1777423838802,-603.0,0.00019,2]
[421317596,1777423838812,-210.0,0.00019,2]
[421317597,1777423838821,-160.0,0.00019,2]
[421317598,1777423838831,-3778.0,0.00019,2]
[421317599,1777423838840,-160.0,0.00019074,2]
[421317600,1777423838850,-219.46793522,0.00019098,2]
[421317601,1777423838860,-32062.12730733,0.00019099,2]
[421317602,1777423838870,-160.0,0.000191,7]
[421317603,1777423838880,-160.0,0.000191,7]
[421317604,1777423838890,-238.48123657,0.000191,3]
[421317605,1777423838900,-616.81946146,0.000191,3]
[421317606,1777423838910,-200.0,0.00019145,120]
[421317607,1777423838919,-478.3072292,0.00019148,2]
[421317608,1777423838929,-949439.85982627,0.00019199,2]
[421317609,1777423838940,-638029.47279226,0.00019199,2]
[421317620,1777423840702,-475.32678867,0.00019,2]
[421317621,1777423840722,-599.76207386,0.00019199,2]
[421317622,1777423840744,-429.42624312,0.00019199,2]
[421317623,1777423840760,-361.545,0.00019199,2]
[421317624,1777423840771,-395.07987909,0.00019199,2]
[421317642,1777423843537,-3654.16979638,0.00019199,2]
[421317644,1777423843596,-5296.90217875,0.00019199,2]
[421317645,1777423843609,-495.82527824,0.00019199,2]
[421317646,1777423843697,-30210.29944801,0.00019199,2]
[421317676,1777423847096,-152.0,0.00018815,7]
[421317678,1777423847106,-152.0,0.00018833,7]
[421317680,1777423847116,-2416.55675061,0.00019199,2]
[421317682,1777423847126,-235.702807,0.00019199,2]
[421317684,1777423847135,-235.702807,0.00019199,2]
[421317686,1777423847145,-235.702807,0.00019199,2]
[421317687,1777423847155,-235.702807,0.00019199,2]
[421317689,1777423847164,-151.0,0.00019199,2]
[421317691,1777423847173,-151.0,0.00019199,2]
[421317693,1777423847183,-1025.904082,0.00019199,2]
[421317695,1777423847193,-1025.904082,0.00019199,2]
[421317697,1777423847203,-1025.904082,0.00019199,2]
[421317698,1777423847213,-1025.904082,0.00019199,2]
[421317700,1777423847223,-201.637136,0.00019199,2]
[421317702,1777423847234,-201.637136,0.00019199,2]
[421317704,1777423847244,-151.0,0.00019199,2]
[421317706,1777423847254,-201.637136,0.00019199,2]
[421317708,1777423847264,-201.637136,0.00019199,2]
[421317710,1777423847274,-324.40879771,0.00019227,2]